bitfinex/quotes_SOLUSD_20250717
["timestamp","ask_amount","ask_price","bid_price","bid_amount"]
[1752735672395,7.96669431,173.27,173.21,0.71]
[1752735672595,7.96669431,173.23,173.21,0.71]
[1752735672795,5.77200577,173.25,173.18,7.96669431]
[1752735672998,7.96669431,173.23,173.21,0.71]
[1752735673310,7.96669431,173.22,173.19,0.71]
[1752735673506,7.96669431,173.21,173.19,0.71]
[1752735673818,7.96669431,173.2,173.17,7.3161]
[1752735674128,7.96669431,173.2,173.17,0.71]
[1752735674425,7.96669431,173.19,173.17,0.71]
[1752735674628,7.96669431,173.2,173.17,0.71]
[1752735674798,7.96669431,173.19,173.17,0.71]
[1752735675396,7.96669431,173.19,173.14,7.96669431]
[1752735675397,7.96669431,173.18,173.14,0.71]
[1752735675596,7.96669431,173.18,173.15,0.71]
[1752735675801,31.32,173.19,173.15,0.71]
[1752735677017,5.77433883,173.18,173.15,0.71]
[1752735677221,5.77377256,173.2,173.16,0.71]
[1752735677394,57.3,173.21,173.17,0.71]
[1752735678610,5.77367205,173.2,173.17,0.71]
[1752735679127,5.77367205,173.2,173.15,0.71]
[1752735679303,5.77367205,173.2,173.16,0.71]
[1752735680593,5.77367205,173.2,173.14,8.67669431]
[1752735681016,7.96669431,173.19,173.14,8.67669431]
[1752735681231,5.77367205,173.2,173.15,0.71]
[1752735682511,0.47,173.19,173.13,6.2029]
[1752735682908,7.96669431,173.17,173.13,6.2029]
[1752735683109,39.36669431,173.19,173.14,8.67669431]
[1752735683429,5.77367205,173.2,173.15,0.71]
[1752735683635,7.96669431,173.19,173.16,0.71]
[1752735683811,37.17367205,173.2,173.14,7.96669431]
[1752735684111,7.96669431,173.19,173.14,8.62669431]
[1752735684305,57.46,173.21,173.15,0.66]
[1752735684633,26.0,173.21,173.17,7.96669431]
[1752735684804,26.0,173.21,173.18,8.62669431]
[1752735685122,7.96669431,173.27,173.2,7.96669431]
[1752735685322,39.42669431,173.28,173.23,7.96669431]
[1752735685526,65.42669431,173.28,173.23,7.96669431]
[1752735685708,39.42669431,173.28,173.23,8.62669431]
[1752735686108,7.96669431,173.27,173.23,0.66]
[1752735686613,7.96669431,173.26,173.21,8.62669431]
[1752735686928,7.96669431,173.26,173.22,0.66]
[1752735687334,7.96669431,173.26,173.19,5.77391613]
[1752735687505,63.23100646,173.28,173.22,8.62669431]
[1752735687831,39.38669431,173.3,173.25,7.96669431]
[1752735688028,26.0,173.27,173.25,7.96669431]
[1752735688208,26.0,173.27,173.26,0.66]
[1752735688708,26.0,173.27,173.24,0.66]
[1752735688922,26.0,173.27,173.24,8.62669431]
[1752735689628,26.0,173.27,173.24,0.66]
[1752735690123,26.0,173.27,173.25,0.66]
[1752735691222,13.73766621,173.29,173.25,0.66]
[1752735691529,26.0,173.29,173.26,0.66]
[1752735691712,26.0,173.29,173.26,7.96669431]
[1752735691913,31.36,173.31,173.27,8.62669431]
[1752735692124,7.96669431,173.33,173.28,8.62669431]
[1752735692430,13.73570319,173.34,173.29,8.62669431]
[1752735692627,13.73570319,173.34,173.29,7.96669431]
[1752735692836,13.73570319,173.34,173.3,0.66]
[1752735693335,13.73570319,173.34,173.31,0.66]
[1752735694029,71.07545966,173.35,173.31,0.66]
[1752735695039,26.0,173.33,173.32,0.66]
[1752735695220,5.76801061,173.37,173.32,0.66]
[1752735695422,33.96669431,173.36,173.32,0.66]
[1752735695622,7.96669431,173.35,173.3,0.66]
[1752735695810,7.96669431,173.35,173.31,8.62669431]
[1752735696152,7.96669431,173.35,173.32,0.66]
[1752735696805,5.76867608,173.35,173.32,0.66]
[1752735697032,5.76867608,173.35,173.31,7.96669431]
[1752735697235,7.96669431,173.34,173.3,0.66]
[1752735697438,7.96669431,173.34,173.3,8.62669431]
[1752735698032,7.96669431,173.32,173.27,0.66]
[1752735698335,7.96669431,173.32,173.28,0.66]
[1752735698739,7.96669431,173.32,173.28,8.62669431]
[1752735699039,13.73647344,173.32,173.25,5.77200577]
[1752735699331,13.73647344,173.32,173.27,7.96669431]
[1752735699510,13.73647344,173.32,173.28,0.66]
[1752735699938,7.96669431,173.29,173.26,0.66]
[1752735700119,7.96669431,173.29,173.25,7.96669431]
[1752735700436,7.96669431,173.29,173.25,8.62669431]
[1752735700636,7.96669431,173.29,173.25,0.66]
[1752735700940,7.96669431,173.29,173.25,8.62669431]
[1752735701133,5.77100646,173.28,173.25,8.62669431]
[1752735701532,5.77100646,173.28,173.25,0.66]
[1752735702649,13.73670181,173.31,173.26,8.62669431]
[1752735702946,7.96669431,173.3,173.27,0.66]
[1752735703267,5.77067343,173.29,173.27,0.66]
[1752735703624,5.7700075,173.31,173.26,7.96669431]
[1752735703825,5.7700075,173.31,173.28,0.66]
[1752735704946,13.73670181,173.31,173.28,0.66]
[1752735705429,13.73670181,173.31,173.27,0.03]
[1752735705633,13.73670181,173.31,173.27,0.69]
[1752735706341,5.7700075,173.31,173.27,0.69]
[1752735706646,0.47,173.3,173.27,0.03]
[1752735707342,5.77067343,173.29,173.27,0.03]
[1752735707524,13.73736774,173.29,173.27,0.03]
[1752735709524,8.43669431,173.28,173.27,0.03]
[1752735709719,26.0,173.25,173.18,7.1091]
[1752735710064,7.96669431,173.2,173.16,2.3155]
[1752735710649,0.47,173.2,173.14,7.1091]
[1752735711021,7.96669431,173.18,173.14,7.1091]
[1752735711449,13.74110707,173.18,173.15,0.66]
[1752735712331,5.77441276,173.18,173.13,0.66]
[1752735712536,7.96669431,173.17,173.13,0.66]
[1752735712960,5.77441276,173.18,173.13,0.66]
[1752735713336,7.96669431,173.17,173.14,0.66]
[1752735713539,14.43364813,173.21,173.15,0.66]
[1752735713738,5.77367205,173.2,173.16,7.96669431]
[1752735713928,5.77367205,173.2,173.12,5.77623598]
[1752735714255,7.96669431,173.19,173.15,0.72]
[1752735714844,7.96669431,173.17,173.13,0.72]
[1752735715027,7.96669431,173.17,173.1,6.4477]
[1752735715228,7.96669431,173.14,173.11,0.72]
[1752735715429,7.96669431,173.15,173.11,0.72]
[1752735715652,7.96669431,173.15,173.11,8.68669431]
[1752735715836,33.96669431,173.16,173.12,0.72]
[1752735716153,7.96669431,173.14,173.1,0.72]
[1752735716326,7.96669431,173.14,173.11,0.72]
[1752735716531,33.96669431,173.16,173.12,0.72]
[1752735716957,7.96669431,173.15,173.12,0.72]
[1752735717623,26.0,173.12,173.09,0.1]
[1752735717824,42.78468397,173.08,173.07,0.03]
[1752735718034,33.96669431,173.08,173.07,0.03]
[1752735718293,51.12137828,173.08,173.07,0.03]
[1752735718751,82.30137828,173.08,173.07,0.03]
[1752735719142,82.30137828,173.08,173.07,1e-08]
[1752735719527,82.30137828,173.08,173.0,0.1579]
[1752735719728,7.96669431,173.01,173.0,0.1579]
[1752735720228,26.0,173.03,173.0,0.8779]
[1752735720437,7.96669431,173.06,173.01,7.96669431]
[1752735720660,3.00492189,173.1,173.04,7.96669431]
[1752735720956,7.96669431,173.1,173.05,0.72]
[1752735721266,31.18,173.11,173.05,0.72]
[1752735721458,57.18,173.11,173.05,0.72]
[1752735721633,7.96669431,173.09,173.05,0.72]
[1752735721837,6.14767506,173.08,173.01,0.72]
[1752735722035,6.14767506,173.08,173.01,8.68669431]
[1752735722233,7.96669431,173.06,173.01,8.68669431]
[1752735722454,7.96669431,173.06,173.02,0.72]
[1752735723363,26.0,173.08,173.03,0.72]
[1752735723533,7.96669431,173.07,173.03,0.72]
[1752735724050,26.0,173.08,173.03,0.72]
[1752735724237,7.96669431,173.07,173.03,0.72]
[1752735724561,7.96669431,173.06,173.03,0.72]
[1752735724758,7.96669431,173.04,173.0,0.1579]
[1752735724945,7.96669431,173.03,173.0,0.1579]
[1752735725561,10.88207395,173.04,173.0,0.8779]
[1752735725810,148.1,173.05,173.04,0.72]
[1752735725952,7.96669431,173.1,173.04,8.68669431]
[1752735726264,7.96669431,173.1,173.05,7.96669431]
[1752735726760,39.74363178,173.11,173.06,7.96669431]
[1752735726926,34.61040833,173.11,173.06,7.96669431]
[1752735727262,42.57710264,173.11,173.04,0.72]
[1752735727457,42.57710264,173.11,173.07,7.96669431]
[1752735727458,0.06,173.08,173.07,7.96669431]
[1752735727626,0.06,173.08,173.04,0.72]
[1752735727827,0.06,173.08,173.04,8.68669431]
[1752735728061,0.06,173.08,173.04,0.72]
[1752735728062,8.02669431,173.08,173.04,0.72]
[1752735728652,7.96669431,173.07,173.04,0.72]
[1752735728851,7.96669431,173.05,173.04,0.72]
[1752735729465,148.16,173.08,173.04,0.72]
[1752735729684,7.96669431,173.06,173.04,0.72]
[1752735729883,7.96669431,173.05,173.04,0.72]
[1752735730182,7.96669431,173.05,173.01,7.99669431]
[1752735730385,5.77800889,173.07,173.01,13.77668399]
[1752735730681,13.7447032,173.07,173.02,7.96669431]
[1752735731077,7.96669431,173.05,173.01,0.03]
[1752735731579,7.96669431,173.07,173.02,7.96669431]
[1752735731778,7.96669431,173.07,173.03,0.72]
[1752735731955,13.74500368,173.07,173.01,0.03]
[1752735732160,7.96669431,173.06,173.01,8.71669431]
[1752735732779,5.77830937,173.07,173.01,0.75]
[1752735732979,8.33669431,173.06,173.01,14.49662787]
[1752735733182,7.96669431,173.06,173.01,0.75]
[1752735733380,7.96669431,173.06,173.01,8.71669431]
[1752735734089,13.74526865,173.06,173.01,8.71669431]
[1752735735278,7.96669431,173.04,173.01,0.03]
[1752735735587,7.96669431,173.03,173.01,0.03]
[1752735736170,14.11609472,173.03,173.01,0.03]
[1752735736484,8.33669431,173.02,173.01,0.03]
[1752735736655,173.22137828,173.02,173.01,0.03]
[1752735738089,30.90105692,173.02,173.01,0.03]
[1752735739561,16.78468397,173.01,173.0,0.1579]
[1752735739781,56.36137828,173.01,173.0,0.1579]
[1752735740167,62.14139099,173.01,173.0,0.1579]
[1752735740963,62.16139099,173.01,173.0,0.1579]
[1752735741367,65.1656357,173.01,173.0,0.1579]
[1752735742066,48.56569911,172.98,172.97,0.1]
[1752735742376,87.77239342,172.98,172.97,0.1]
[1752735742575,88.14239342,172.98,172.97,0.1]
[1752735742769,87.77239342,172.98,172.97,0.1]
[1752735742973,26.0,172.98,172.97,0.1]
[1752735743301,65.18669431,172.98,172.97,0.1]
[1752735743594,71.33770945,172.98,172.97,0.1]
[1752735743774,88.12239342,172.98,172.97,0.1]
[1752735745289,80.15569911,172.98,172.97,0.1]
[1752735745496,88.12239342,172.98,172.97,0.1]
[1752735746293,88.14239342,172.98,172.97,0.1]
[1752735746985,89.67279342,172.98,172.97,0.1]
[1752735748094,81.70609911,172.98,172.97,0.1]
[1752735748391,89.67279342,172.98,172.97,0.1]
[1752735749798,89.67279342,172.98,172.97,1e-08]
[1752735750365,89.67279342,172.98,172.94,0.03]
[1752735750366,42.78468397,172.95,172.94,0.03]
[1752735750570,26.0,172.91,172.9,0.03]
[1752735750793,82.03137828,172.91,172.9,0.03]
[1752735750982,74.43468397,172.91,172.9,0.03]
[1752735751185,82.40137828,172.91,172.9,0.03]
[1752735751392,26.0,172.87,172.83,0.1]
[1752735751584,31.48,172.86,172.83,0.1]
[1752735751775,33.96669431,172.84,172.83,0.1]
[1752735752114,65.46669431,172.84,172.83,0.1]
[1752735752277,71.62239206,172.84,172.76,5.6612]
[1752735752474,26.0,172.81,172.69,1.579]
[1752735752804,7.96669431,172.76,172.73,0.71]
[1752735753100,26.0,172.8,172.73,0.71]
[1752735753308,7.96669431,172.81,172.73,0.71]
[1752735753598,42.78468397,172.83,172.73,26.0]
[1752735753788,26.0,172.83,172.73,26.0]
[1752735754106,8.67868,172.84,172.74,1.637]
[1752735754275,5.78636731,172.82,172.77,7.96669431]
[1752735754474,6.44636731,172.82,172.74,1.637]
[1752735754893,26.0,172.79,172.74,1.637]
[1752735755090,7.96669431,172.77,172.68,5.7910586]
[1752735755391,7.96669431,172.77,172.67,16.78468397]
[1752735755392,26.0,172.76,172.69,6.1596]
[1752735755794,26.0,172.76,172.72,7.96669431]
[1752735755993,26.0,172.79,172.73,0.71]
[1752735756809,26.0,172.79,172.75,7.96669431]
[1752735757008,26.0,172.79,172.76,8.67669431]
[1752735757209,7.96669431,172.82,172.77,0.71]
[1752735757388,7.96669431,172.82,172.73,5.78934783]
[1752735757389,7.96669431,172.83,172.76,1.5268]
[1752735757698,7.96669431,172.82,172.78,0.71]
[1752735757903,26.0,172.82,172.78,0.71]
[1752735758078,26.0,172.82,172.76,1.5268]
[1752735758282,26.0,172.82,172.79,0.71]
[1752735758476,50.28468397,172.87,172.79,0.71]
[1752735758477,7.96669431,172.83,172.79,0.71]
[1752735759289,6.44509715,172.86,172.79,0.71]
[1752735759599,26.0,172.83,172.79,0.71]
[1752735759806,26.0,172.83,172.8,0.71]
[1752735760190,33.96669431,172.83,172.78,7.96669431]
[1752735760391,31.78612164,172.83,172.78,0.71]
[1752735760582,7.96669431,172.82,172.78,0.71]
[1752735760779,26.0,172.83,172.79,8.67669431]
[1752735760979,26.0,172.83,172.76,1.5268]
[1752735760980,26.0,172.83,172.8,0.71]
[1752735761204,5.78437744,172.88,172.82,7.96669431]
[1752735761398,26.0,172.85,172.83,7.96669431]
[1752735761710,7.96669431,172.89,172.84,8.67669431]
[1752735761902,8.78074932,172.9,172.85,0.71]
[1752735762209,43.44468397,172.92,172.85,0.71]
[1752735762388,43.44468397,172.92,172.83,8.67669431]
[1752735762389,13.7511237,172.88,172.83,8.67669431]
[1752735762593,7.96669431,172.86,172.81,0.71]
[1752735762784,0.66,172.87,172.79,8.67669431]
[1752735762979,7.96669431,172.84,172.8,7.96669431]
[1752735763183,0.66,172.87,172.81,0.71]
[1752735763387,7.96669431,172.85,172.81,0.71]
[1752735763593,7.96669431,172.85,172.82,0.71]
[1752735763785,13.75148703,172.87,172.83,0.71]
[1752735763981,7.96669431,172.86,172.83,0.71]
[1752735764511,5.78479272,172.87,172.83,0.71]
[1752735764813,5.78440795,172.88,172.83,0.71]
[1752735764997,31.78403608,172.89,172.84,0.71]
[1752735765191,26.0,172.88,172.84,8.67669431]
[1752735765402,7.96669431,172.9,172.85,0.71]
[1752735765583,26.0,172.91,172.85,0.71]
[1752735765584,26.0,172.89,172.85,8.67669431]
[1752735765788,12.36866039,172.92,172.87,7.96669431]
[1752735766013,5.92563538,172.92,172.87,0.71]
[1752735766218,31.92563538,172.92,172.87,5.78468551]
[1752735766393,36.89505699,172.92,172.88,0.71]
[1752735766589,28.92836268,172.92,172.88,0.71]
[1752735766810,184.99505699,172.92,172.88,0.71]
[1752735767004,177.02836268,172.92,172.88,0.71]
[1752735767514,156.72669431,172.92,172.86,0.71]
[1752735767720,156.72669431,172.92,172.87,7.96669431]
[1752735767898,161.84971646,172.92,172.87,8.67669431]
[1752735768104,148.1,172.92,172.88,8.67669431]
[1752735768398,148.1,172.92,172.9,7.96669431]
[1752735768593,148.1,172.92,172.9,8.67669431]
[1752735768917,148.1,172.92,172.9,0.71]
[1752735769307,148.1,172.92,172.87,6.9522]
[1752735769488,7.96669431,172.91,172.87,6.9522]
[1752735769688,148.76,172.92,172.87,8.67669431]
[1752735769889,156.06669431,172.92,172.88,8.67669431]
[1752735770113,153.88312268,172.92,172.88,0.71]
[1752735770317,156.79484003,172.92,172.88,0.71]
[1752735770496,164.76153434,172.92,172.88,8.67669431]
[1752735770691,156.7947806,172.92,172.88,8.67669431]
[1752735770897,151.01171735,172.92,172.89,8.67669431]
[1752735771098,148.1,172.92,172.9,8.67669431]
[1752735771418,148.1,172.92,172.91,8.67669431]
[1752735772514,26.0,172.95,172.91,8.67669431]
[1752735772705,0.06,172.92,172.91,8.67669431]
[1752735773013,0.06,172.92,172.91,7.96669431]
[1752735773220,0.06,172.92,172.91,5.7833555]
[1752735773396,0.06,172.92,172.91,13.75004981]
[1752735773717,0.06,172.92,172.91,14.46004981]
[1752735774217,0.06,172.92,172.91,21.03494981]
[1752735774726,0.06,172.92,172.91,15.25159431]
[1752735775021,0.06,172.92,172.91,13.0682555]
[1752735775219,0.06,172.92,172.91,21.03494981]
[1752735776826,0.06,172.92,172.91,7.2849]
[1752735777023,0.06,172.92,172.91,15.25159431]
[1752735777691,0.06,172.92,172.91,14.46004981]
[1752735779324,0.06,172.92,172.91,8.67669431]
[1752735780623,0.06,172.92,172.91,14.46004981]
[1752735781715,0.06,172.92,172.91,16.11324981]
[1752735782535,8.70669431,172.92,172.85,7.43852787]
[1752735782704,0.68,172.91,172.84,32.54]
[1752735782900,0.68,172.91,172.84,7.96669431]
[1752735783099,5.78368999,172.9,172.84,40.56669431]
[1752735783301,7.96669431,172.88,172.84,32.6]
[1752735783497,7.96669431,172.88,172.84,33.28]
[1752735783838,7.96669431,172.87,172.84,32.6]
[1752735784006,7.96669431,172.85,172.79,6.8326]
[1752735784330,0.68,172.86,172.79,32.58]
[1752735784528,7.96669431,172.82,172.79,32.58]
[1752735784830,0.68,172.86,172.79,33.26]
[1752735784831,7.96669431,172.83,172.79,33.26]
[1752735785001,0.68,172.86,172.8,0.68]
[1752735785202,7.96669431,172.84,172.8,0.68]
[1752735785632,7.96669431,172.84,172.81,0.68]
[1752735785840,5.78536303,172.85,172.81,0.68]
[1752735786129,13.75205734,172.85,172.81,0.68]
[1752735787099,38.7016,172.9,172.83,7.96669431]
[1752735787100,0.68,172.89,172.83,7.96669431]
[1752735787339,26.0,172.88,172.84,7.96669431]
[1752735787640,32.46435909,172.88,172.82,0.68]
[1752735787809,32.46435909,172.88,172.82,8.64669431]
[1752735788343,32.46435909,172.88,172.82,0.68]
[1752735788529,32.46435909,172.88,172.82,8.64669431]
[1752735788710,32.46435909,172.88,172.82,0.68]
[1752735789521,39.7510534,172.88,172.83,7.96669431]
[1752735789727,39.7510534,172.88,172.84,0.68]
[1752735790143,39.7510534,172.88,172.85,0.68]
[1752735790321,39.7510534,172.88,172.8,32.48]
[1752735790322,7.96669431,172.86,172.8,32.48]
[1752735790640,7.96669431,172.86,172.79,0.68]
[1752735790641,0.68,172.86,172.79,0.68]
[1752735790845,7.96669431,172.83,172.79,33.16]
[1752735791022,5.78608369,172.83,172.79,41.12669431]
[1752735791544,5.78608369,172.83,172.79,8.64669431]
[1752735792034,13.752778,172.83,172.79,33.16]
[1752735792226,14.432778,172.83,172.77,8.64669431]
[1752735792428,14.432778,172.83,172.77,41.10669431]
[1752735792935,13.75339646,172.81,172.77,33.14]
[1752735793339,13.75339646,172.81,172.77,0.68]
[1752735793733,13.75339646,172.81,172.76,42.05989431]
[1752735794036,5.78612167,172.83,172.78,7.96669431]
[1752735794220,14.4324853,172.84,172.79,8.64669431]
[1752735794727,7.96669431,172.83,172.79,0.68]
[1752735794932,7.96669431,172.84,172.8,0.68]
[1752735795240,8.64669431,172.84,172.78,0.68]
[1752735795438,7.96669431,172.83,172.78,8.64669431]
[1752735796045,0.68,172.84,172.78,0.68]
[1752735796352,7.96669431,172.83,172.78,8.64669431]
[1752735796522,7.96669431,172.83,172.78,7.96669431]
[1752735796845,8.64669431,172.84,172.79,8.64669431]
[1752735797027,13.75243368,172.84,172.8,0.68]
[1752735797847,14.43243368,172.84,172.78,32.38]
[1752735798040,14.43243368,172.84,172.79,7.96669431]
[1752735798358,14.43243368,172.84,172.79,8.64669431]
[1752735798725,153.8862164,172.83,172.79,8.64669431]
[1752735799246,148.1,172.83,172.8,7.96669431]
[1752735799434,148.1,172.83,172.81,8.64669431]
[1752735799630,148.1,172.83,172.81,7.96669431]
[1752735799835,148.1,172.83,172.81,0.68]
[1752735800226,148.1,172.83,172.79,0.68]
[1752735800423,154.56608437,172.83,172.79,0.68]
[1752735800628,154.56608437,172.83,172.79,7.96669431]
[1752735800944,0.68,172.82,172.78,32.38]
[1752735801244,161.85277868,172.83,172.78,33.06]
[1752735801539,162.53277868,172.83,172.78,41.02669431]
[1752735801717,148.1,172.83,172.79,0.68]
[1752735802145,153.88603632,172.83,172.8,7.96669431]
[1752735802451,0.68,172.82,172.78,40.34669431]
[1752735802658,5.78670215,172.81,172.78,40.34669431]
[1752735803030,6.46670215,172.81,172.76,0.68]
[1752735803251,14.43339646,172.81,172.76,40.86669431]
[1752735803544,5.78643109,172.82,172.77,8.64669431]
[1752735803740,6.46643109,172.82,172.77,8.64669431]
[1752735803938,6.46643109,172.82,172.77,0.68]
[1752735804151,0.72,172.81,172.76,32.22]
[1752735804324,0.72,172.81,172.77,7.96669431]
[1752735804524,0.72,172.81,172.76,32.22]
[1752735804731,5.78703703,172.8,172.76,40.85669431]
[1752735805536,6.50676789,172.81,172.77,7.96669431]
[1752735805752,156.78669431,172.83,172.78,8.63669431]
[1752735805947,148.1,172.83,172.8,7.96669431]
[1752735806154,148.1,172.83,172.8,8.63669431]
[1752735806533,148.1,172.83,172.81,8.63669431]
[1752735806732,148.1,172.83,172.81,0.67]
[1752735806947,148.1,172.83,172.81,6.14702195]
[1752735807659,148.1,172.83,172.82,0.67]
[1752735808030,148.1,172.83,172.81,5.47702195]
[1752735808261,148.1,172.83,172.82,6.14702195]
[1752735808843,148.1,172.83,172.82,5.47702195]
[1752735809042,148.1,172.83,172.78,32.79]
[1752735809043,162.63788517,172.83,172.78,32.79]
[1752735809338,148.1,172.83,172.8,8.03179174]
[1752735809547,148.1,172.83,172.81,8.70179174]
[1752735809746,148.1,172.83,172.82,8.70179174]
[1752735810529,148.1,172.83,172.82,40.78179174]
[1752735810734,33.6423,172.9,172.83,5.78603251]
[1752735810735,148.1,172.88,172.83,5.78603251]
[1752735811062,148.1,172.87,172.84,0.67]
[1752735811266,38.58338117,172.91,172.86,8.03179174]
[1752735811267,148.1,172.91,172.86,8.03179174]
[1752735811435,148.1,172.91,172.9,8.03179174]
[1752735811632,148.1,172.91,172.88,0.67]
[1752735811839,148.1,172.91,172.89,8.03179174]
[1752735812161,154.60346742,172.91,172.88,8.03179174]
[1752735812355,154.60346742,172.91,172.86,32.75]
[1752735812560,148.1,172.9,172.87,8.03179174]
[1752735812750,154.60395764,172.9,172.86,32.08]
[1752735812936,154.60395764,172.9,172.86,40.11179174]
[1752735812937,155.10395764,172.9,172.86,40.11179174]
[1752735813346,155.10395764,172.9,172.87,8.03179174]
[1752735813637,148.6,172.9,172.86,32.75]
[1752735813844,148.6,172.9,172.87,0.67]
[1752735814242,154.38371698,172.9,172.86,32.08]
[1752735814438,155.10371698,172.9,172.86,32.08]
[1752735815438,0.72,172.89,172.86,32.08]
[1752735815640,148.82,172.88,172.84,8.03179174]
[1752735815886,0.72,172.87,172.83,40.07179174]
[1752735816647,148.1,172.88,172.84,8.70179174]
[1752735816859,153.88439792,172.88,172.84,8.70179174]
[1752735817181,154.60439792,172.88,172.84,8.03179174]
[1752735817942,148.1,172.88,172.84,8.70179174]
[1752735818142,153.88437299,172.88,172.85,8.03179174]
[1752735818376,148.1,172.88,172.85,8.03179174]
[1752735818548,148.1,172.88,172.86,8.03179174]
[1752735818861,148.1,172.88,172.86,8.70179174]
[1752735819073,148.1,172.88,172.87,8.03179174]
[1752735819287,148.1,172.87,172.8,1.6258]
[1752735819567,180.08,172.86,172.78,8.70179174]
[1752735819778,16.78468397,172.85,172.75,8.3355]
[1752735819948,8.03179174,172.79,172.73,32.68]
[1752735820156,8.03179174,172.79,172.74,8.03179174]
[1752735820367,8.03179174,172.8,172.75,8.03179174]
[1752735820551,8.03179174,172.8,172.75,8.70179174]
[1752735820868,5.78703703,172.8,172.75,0.67]
[1752735821073,5.78703703,172.8,172.76,8.03179174]
[1752735821277,6.50703703,172.8,172.75,0.67]
[1752735823174,0.72,172.79,172.74,8.03179174]
[1752735823413,0.72,172.79,172.75,8.03179174]
[1752735824681,6.50761386,172.79,172.75,8.03179174]
[1752735825585,5.78761386,172.79,172.75,8.70179174]
[1752735826085,0.72,172.78,172.73,0.03]
[1752735826267,8.03179174,172.76,172.73,0.03]
[1752735826575,0.72,172.76,172.73,0.03]
[1752735826765,5.78904712,172.74,172.73,0.03]
[1752735827972,6.50904712,172.74,172.73,0.03]
[1752735829585,0.72,172.74,172.73,0.03]
[1752735829792,148.1,172.75,172.73,0.03]
[1752735830478,148.1,172.75,172.73,0.7]
[1752735830687,148.1,172.75,172.73,8.73179174]
[1752735830916,153.88876187,172.75,172.73,0.03]
[1752735831790,153.88875234,172.75,172.73,0.03]
[1752735832884,148.1,172.75,172.73,0.03]
[1752735833075,148.1,172.75,172.74,5.48192533]
[1752735833280,148.1,172.75,172.74,6.15192533]
[1752735833473,148.1,172.75,172.74,0.67]
[1752735833670,148.1,172.75,172.73,5.51192533]
[1752735834190,148.77,172.75,172.73,5.51192533]
[1752735834482,148.1,172.79,172.74,6.18192533]
[1752735834693,148.1,172.79,172.78,5.48192533]
[1752735835268,148.6,172.79,172.78,6.18192533]
[1752735835469,148.6,172.79,172.78,5.48192533]
[1752735836795,148.6,172.79,172.76,0.7]
[1752735837097,148.6,172.79,172.78,5.48192533]
[1752735838085,5.78545344,172.85,172.78,6.18192533]
[1752735838423,5.78545344,172.85,172.84,5.48192533]
[1752735838602,5.78545344,172.85,172.83,5.48192533]
[1752735838808,5.78513737,172.86,172.84,5.48192533]
[1752735838981,6.45513737,172.86,172.83,5.48192533]
[1752735839408,6.45513737,172.86,172.84,5.48192533]
[1752735839700,211.54474808,172.87,172.85,5.48192533]
[1752735839904,212.21474808,172.87,172.84,5.48192533]
[1752735840492,180.55474808,172.87,172.85,5.48192533]
[1752735840802,6.3771,172.92,172.85,5.48192533]
[1752735840803,0.06,172.92,172.86,5.48192533]
[1752735841114,0.06,172.92,172.9,17.38095066]
[1752735841408,0.06,172.92,172.9,51.20095066]
[1752735842000,0.06,172.92,172.91,6.99982533]
[1752735843013,0.06,172.92,172.91,23.33499002]
[1752735843186,3.00307934,172.97,172.91,63.79337877]
[1752735843387,0.06,172.98,172.91,33.3012555]
[1752735843586,0.06,172.98,172.97,8.01686726]
[1752735843987,0.06,172.98,172.94,33.76]
[1752735844213,0.06,172.98,172.97,8.01686726]
[1752735845114,0.06,172.98,172.97,13.79821662]
[1752735846416,0.06,172.98,172.97,34.01686726]
[1752735846832,0.2,173.03,172.97,34.01686726]
[1752735847113,0.2,173.03,173.02,8.01686726]
[1752735847409,0.2,173.03,173.02,41.71686726]